Cogmind - Beta 16.1 @@@ ROGUE MODE // 2026.02.16 @ 18:52:32 Player: Rudrot Result: Destroyed by S-10 Pest with Light Assault Rifle Performance ------------- Evolutions (0) 0 Regions Visited (4) 800 Robots Destroyed (35) 175 Value Destroyed (676) 676 Prototype IDs (27) 540 Alien Tech Used (0) 0 Bonus (300) 300 TOTAL SCORE: 2491 Bonus ------- Aligned with FarCom 300 Cogmind --------- Core Integrity 0/250 Matter 272/300 Energy 186/250 System Corruption 0% Temperature Hot (276) Movement Walking (190) Ox1 Location -9/Mines Parts ------- > --- POWER (1) -------- Ion Engine > --- PROPULSION (2) --- Aluminum Leg Aluminum Leg > --- UTILITY (2) ------ Medium Storage Unit Improved Terrain Scanner > --- WEAPON (2) ------- Spread Laser Spread Laser > --- INVENTORY (10) --- Aluminum Leg Aluminum Leg Shield Generator PSU Rigger Spread Laser Spread Laser Rocket Launcher Peak State ------------ > --- POWER ------------ Light Ion Engine > --- PROPULSION ------- Aluminum Leg Aluminum Leg > --- UTILITY ---------- Improved Terrain Scanner Shield Generator > --- WEAPON ----------- Spread Laser Spread Laser > --- INVENTORY -------- Ion Engine Aluminum Leg Aluminum Leg Small Laser Grenade Launcher [Rating: 12] Favorites ----------- Power Ion Engine Engine Ion Engine Propulsion Aluminum Leg Leg Aluminum Leg Utility Medium Storage Unit Device Improved Terrain Scanner Storage Medium Storage Unit Weapon Spread Laser Energy Gun Spread Laser Special Weapon Welding Torch Build | -11 -10 -10 -10 -9 ------- Run | Yrd Mat Min Exi Min Slots Evolved . | . . . . . Power . | . . . . . Propulsion . | . . . . . Utility . | . . . . . Weapon . | . . . . . Parts Attached 30 | 6 19 4 1 . Power 3 | 1 1 1 . . Engine 3 | 1 1 1 . . Core . | . . . . . Reactor . | . . . . . Propulsion 13 | 2 8 3 . . Treads . | . . . . . Leg 13 | 2 8 3 . . Wheel . | . . . . . Hover . | . . . . . Flight . | . . . . . Utility 5 | 1 3 . 1 . Device 3 | 1 2 . . . Storage 2 | . 1 . 1 . Processor . | . . . . . Hackware . | . . . . . Protection . | . . . . . Artifact . | . . . . . Weapon 9 | 2 7 . . . Energy Gun 8 | 2 6 . . . Energy Cannon . | . . . . . Ballistic Gun . | . . . . . Ballistic Cannon . | . . . . . Launcher . | . . . . . Special Weapon 1 | . 1 . . . Impact Weapon . | . . . . . Slashing Weapon . | . . . . . Piercing Weapon . | . . . . . Special Melee Weapon . | . . . . . Unidentified Prototypes . | . . . . . Parts Lost 1 | . 1 . . . Power . | . . . . . Propulsion . | . . . . . Utility . | . . . . . Weapon 1 | . 1 . . . Highest Loss Streak 1 | . 1 . . . To Critical Strikes . | . . . . . Average Backups 7 | . 6 8 8 7 Power . | . . . . . Propulsion 1 | . 1 2 2 2 Utility 1 | . 1 2 2 2 Weapon 3 | . 2 3 3 3 Tool/Special . | . . . . . Unused Backups 4 | . 1 . 1 2 Power . | . . . . . Propulsion . | . . . . . Utility 1 | . . . . 1 Weapon 3 | . 1 . 1 1 Tool/Special . | . . . . . Average Slot Usage (%) 98 | . 96 100 100 100 Engine 14 | . 14 14 14 14 Leg 28 | . 28 28 28 28 Device 13 | . 13 14 14 14 Storage 12 | . 11 14 14 14 Energy Gun 26 | . 25 28 28 28 Peak Build Rating 12 | 8 12 12 12 12 Average Rating 10 | 6 9 10 12 12 On Entrance 8 | . 8 10 12 12 Avg Prop Armor Cover (%) . | . . . . . Naked Turns . | . . . . . Heaviest Build 23 | 7 23 23 22 22 Greatest Support 20 | 20 20 20 20 20 Greatest Overweight (x) 2 | . 1 2 1 1 Average Overweight (x) . | . . 1 1 1 Largest Inventory Capacity 10 | 5 10 10 10 10 Average Capacity 9 | 5 8 10 10 10 Most Carried 10 | 1 9 10 10 7 Average Carried 7 | . 6 8 8 7 Final Capacity 10 | 5 10 10 10 10 Final Carried 9 | 1 7 9 7 7 Class Distribution -------------------- 50% | Mutant 46% | Scavenger-Mutant Dominant Class ---------------- Mutant | -10/Materials Mutant | -10/Mines Scavenger-Mutant | -10/Exiles Scavenger-Skirmisher | -9/Mines Resources | -11 -10 -10 -10 -9 ----------- Run | Yrd Mat Min Exi Min Matter Collected 513 | 260 210 43 . . Remotely . | . . . . . Salvage Created 798 | 154 548 69 . 27 Parts 66 | 13 42 4 . 7 Haulers Intercepted 1 | . 1 . . . Recyclers Shooed 1 | . 1 . . . Parts Field Recycled . | . . . . . Retrieved Matter . | . . . . . Parts Self-Destructed . | . . . . . Prevented . | . . . . . Parts Restored . | . . . . . Kills | -11 -10 -10 -10 -9 ------- Run | Yrd Mat Min Exi Min Combat Hostiles Destroyed 26 | . 21 2 . 3 Guns 26 | . 21 2 . 3 Classes Destroyed 7 | 2 5 . . . Worker 2 | . 2 . . . Tunneler 4 | 4 . . . . Hauler 1 | . 1 . . . Recycler 1 | 1 . . . . Watcher 1 | . 1 . . . Swarmer 12 | . 9 . . 3 Grunt 14 | . 12 2 . . Best Kill Streak 5 | 3 5 2 . 3 Combat Bots Only 3 | . 3 2 . 3 Max Kills in Single Turn 1 | 1 1 1 . 1 Gunslinging . | . . . . . Exploded . | . . . . . Melee . | . . . . . Uniques/NPCs Destroyed . | . . . . . Combat | -11 -10 -10 -10 -9 -------- Run | Yrd Mat Min Exi Min Hostile Shots Fired 129 | . 98 14 . 17 Missed 27 | . 23 2 . 2 Hits 102 | . 75 12 . 15 Projectile 102 | . 75 12 . 15 Critical Strikes 1 | . . . . 1 Part Disruptions 1 | . . 1 . . Damage Taken 977 | . 696 154 . 127 Core 258 | . 169 56 . 33 Absorbed by Shields 127 | . 127 . . . Core Remaining (%) 100 | 100 . . . . Volleys Fired 97 | 12 70 10 . 5 Largest 2 | 2 2 2 . 2 Hottest 130 | 90 130 130 . 130 Shots Fired 184 | 24 130 20 . 10 Gun 179 | 24 125 20 . 10 Cannon . | . . . . . Launcher . | . . . . . Special 5 | . 5 . . . Kinetic . | . . . . . Thermal 184 | 24 130 20 . 10 Explosive . | . . . . . Electromagnetic . | . . . . . Robot Hit Streak 9 | 4 9 5 . 4 Robot Miss Streak 17 | 4 11 17 . 8 Penetration Max . | . . . . . Secondary Targets 6 | . 3 . . 3 Max Gunslinging Chain 1 | . 1 . . 1 Shots Hit Robots 117 | 12 86 12 . 7 Core Hits 102 | 6 74 15 . 7 Critical Kills . | . . . . . Critical Parts Destroyed . | . . . . . Critical Strikes 4 | 2 2 . . . Burn 4 | 2 2 . . . Melee Attacks . | . . . . . Impact . | . . . . . Slashing . | . . . . . Piercing . | . . . . . Sneak Attacks . | . . . . . Combat Hostiles . | . . . . . Follow-up Attacks . | . . . . . Damage Inflicted 1409 | 156 990 188 . 75 Guns 1377 | 156 972 174 . 75 Cannons . | . . . . . Explosions . | . . . . . Melee . | . . . . . Ramming 28 | . 14 14 . . Kinetic . | . . . . . Thermal 1381 | 156 976 174 . 75 Explosive . | . . . . . Electromagnetic . | . . . . . Impact . | . . . . . Slashing . | . . . . . Piercing . | . . . . . Highest Corruption . | . . . . . Average Corruption . | . . . . . Corruption Purged . | . . . . . Corruption Blocked . | . . . . . Overload Shots . | . . . . . Overflow Damage . | . . . . . Projectiles . | . . . . . Explosions . | . . . . . Melee . | . . . . . Knockbacks 1 | . . 1 . . Impact 1 | . . 1 . . Kinetic . | . . . . . Secondary . | . . . . . Self-Inflicted Damage . | . . . . . Shots . | . . . . . Rammed . | . . . . . Targets Rammed 8 | . 5 3 . . Kicked 8 | . 5 3 . . Crushed . | . . . . . Highest Temperature 511 | 114 511 424 . 276 Average Temperature 119 | 42 121 159 . 149 Received Heat Transfer 361 | . 273 88 . . Effects 8 | . 5 3 . . Shutdowns 2 | . 2 . . . Energy Bleed 1 | . 1 . . . Interference 4 | . 2 2 . . Damage (minor) 1 | . . 1 . . Siege Activations . | . . . . . Martial Activations . | . . . . . Shielding Activations . | . . . . . Robots Disrupted . | . . . . . Combat Hostiles . | . . . . . Robots Corrupted . | . . . . . Combat Hostiles . | . . . . . Parts Fried . | . . . . . Impact Corruptions . | . . . . . Robots Melted . | . . . . . Combat Hostiles . | . . . . . Parts Melted 2 | . 2 . . . Heat Transferred 2768 | 581 1887 210 . 90 Parts Sabotaged . | . . . . . Parts Stolen . | . . . . . Parts Stripped . | . . . . . Power Chain Reactions . | . . . . . Alert | -11 -10 -10 -10 -9 ------- Run | Yrd Mat Min Exi Min Maximum Alert Level . | . . . . . Low Security (%) 100 | 100 100 100 . 100 Level 1 . | . . . . . Level 2 . | . . . . . Level 3 . | . . . . . Level 4 . | . . . . . Level 5 . | . . . . . High Security . | . . . . . Max Security . | . . . . . Peak Influence 156 | 10 156 50 . 40 Initial 7 | . . 7 . . Average 32 | . 45 4 . 1 Influence Increases 707 | 25 562 50 . 70 Destroy 0b10 Robot/C 520 | . 420 40 . 60 Destroy 0b10 Robot/NC 45 | 25 20 . . . Destroy Leader 94 | . 74 10 . 10 Successful Hack 33 | . 33 . . . Lose Combat Pursuer 15 | . 15 . . . Influence Decreases 647 | 25 543 69 . 10 Entered New Map 12 | . . 12 . . Time Decay 635 | 25 543 57 . 10 Squads Dispatched 4 | . 4 . . . Investigation 3 | . 3 . . . Extermination . | . . . . . Reinforcement 1 | . 1 . . . Assault . | . . . . . Garrison . | . . . . . Intercept . | . . . . . Searches Triggered . | . . . . . Construction Impeded . | . . . . . Haulers Reinforced . | . . . . . Active Scanning Responses . | . . . . . Cargo Convoy Interrupts . | . . . . . Stealth | -11 -10 -10 -10 -9 --------- Run | Yrd Mat Min Exi Min Distress Signals 1 | . 1 . . . Communications Jammed . | . . . . . Distress Signals . | . . . . . Times Spotted 51 | . 34 13 . 4 Peak Tracking Total 9 | . 5 9 . 4 Tactical Retreats 3 | . 1 2 . . Traps | -11 -10 -10 -10 -9 ------- Run | Yrd Mat Min Exi Min Traps Triggered 1 | . 1 . . . Indirectly . | . . . . . Trap Hack Attempts . | . . . . . Triggered . | . . . . . Disarmed . | . . . . . Reprogrammed . | . . . . . Reused . | . . . . . Traps Extracted . | . . . . . Installed . | . . . . . Triggered . | . . . . . Machines | -11 -10 -10 -10 -9 ---------- Run | Yrd Mat Min Exi Min Machines Disabled . | . . . . . Max in Single Turn . | . . . . . Machines Repaired . | . . . . . Machines Dismantled . | . . . . . Machines Sabotaged . | . . . . . Overloaded Fab Kills . | . . . . . Hacking | -11 -10 -10 -10 -9 --------- Run | Yrd Mat Min Exi Min Machines Accessed 5 | . 4 . 1 . Terminals 3 | . 3 . . . Fabricators . | . . . . . Repair Stations 1 | . 1 . . . Recycling Units . | . . . . . Scanalyzers . | . . . . . Garrison Access . | . . . . . Total Hacks 11 | . 10 . 1 . Successful 7 | . 6 . 1 . Failed 4 | . 4 . . . Catastrophic . | . . . . . Database Lockouts . | . . . . . Manual 1 | . . . 1 . Terminals 7 | . 7 . . . Fabricators . | . . . . . Repair Stations 3 | . 3 . . . Recycling Units . | . . . . . Scanalyzers . | . . . . . Garrison Access . | . . . . . Terminal Hacks 6 | . 5 . 1 . Prototype ID Bank 3 | . 3 . . . Terminal Index 1 | . 1 . . . Dispatch Records 1 | . 1 . . . Proto ID Catalog 1 | . . . 1 . Fabricator Hacks . | . . . . . Repair Station Hacks 1 | . 1 . . . Scan Component 1 | . 1 . . . Recycling Unit Hacks . | . . . . . Scanalyzer . | . . . . . Garrison Access Hacks . | . . . . . Unauthorized Hacks . | . . . . . Terminals . | . . . . . Fabricators . | . . . . . Repair Stations . | . . . . . Recycling Units . | . . . . . Scanalyzers . | . . . . . Garrison Access . | . . . . . Data Cores Recovered . | . . . . . Used . | . . . . . Hacking Detections 3 | . 3 . . . Full Trace Events 3 | . 3 . . . Feedback Events . | . . . . . Feedback Blocked . | . . . . . Robot Schematics Acquired . | . . . . . Robots Built . | . . . . . Authchips . | . . . . . Time . | . . . . . Total Robot Build Rating . | . . . . . Part Schematics Acquired . | . . . . . Parts Built . | . . . . . Authchips . | . . . . . Time . | . . . . . Total Part Build Rating . | . . . . . Part Studies Acquired . | . . . . . Parts Repaired . | . . . . . Time . | . . . . . Parts Recycled . | . . . . . Recycled Matter . | . . . . . Retrieved Matter . | . . . . . Retrieved Components . | . . . . . Parts Scanalyzed . | . . . . . Part Schematics Acquired . | . . . . . Parts Damaged . | . . . . . Bothacking | -11 -10 -10 -10 -9 ------------ Run | Yrd Mat Min Exi Min Used RIF Installer . | . . . . . Robots Hacked . | . . . . . Non-combat . | . . . . . Combat . | . . . . . Robot Hacks Applied . | . . . . . Relay Couplers Released . | . . . . . Fabnet Peak Effective % . | . . . . . Robots Rewired . | . . . . . Allies Hacked . | . . . . . Hacks Repelled . | . . . . . Allies | -11 -10 -10 -10 -9 -------- Run | Yrd Mat Min Exi Min Total Allies . | . . . . . Largest Group . | . . . . . Highest-Rated Group . | . . . . . Highest-Rated Ally . | . . . . . Total Orders . | . . . . . Ally Attacks . | . . . . . Total Damage . | . . . . . Kills . | . . . . . Allies Corrupted . | . . . . . Allies Melted . | . . . . . Intel | -11 -10 -10 -10 -9 ------- Run | Yrd Mat Min Exi Min Active Infowar (turns) 3691 | 93 1011 662 1781 144 Terrain 2656 | 93 425 213 1781 144 ECM 1035 | . 586 449 . . Robot Analysis Total . | . . . . . Derelict Logs Recovered 1 | . . 1 . . Drone Launches . | . . . . . Drone Recoveries . | . . . . . Exploration | -11 -10 -10 -10 -9 ------------- Run | Yrd Mat Min Exi Min Turns Passed 4862 | 157 2117 663 1781 144 Spaces Moved 2368 | 94 1055 321 829 69 Core 2 | 2 . . . . Treads . | . . . . . Legs 2366 | 92 1055 321 829 69 Wheels . | . . . . . Hover . | . . . . . Flight . | . . . . . Fastest Speed 50 | 50 120 190 190 190 Average Speed 179 | 118 172 190 190 190 Slowest Speed 260 | 120 190 260 190 190 Overloaded Moves . | . . . . . Propulsion Burnouts . | . . . . . Robots Hopped . | . . . . . Potential Cave-ins . | . . . . . Cave-ins Triggered . | . . . . . Exploration Rate (%) 52 | 4 92 59 94 14 Regions Visited 4 Branch Regions 3 Pre-discovered Areas 2 | . . 2 . . Known Exits Taken . | . . . . . Unknown Exits Taken 4 | 1 1 1 1 . Scrap Searched . | . . . . . Spaces Dug . | . . . . . Terrain Destroyed . | . . . . . Melee . | . . . . . Projectile . | . . . . . AOE . | . . . . . Terrain Rammed . | . . . . . Walls Destroyed . | . . . . . Machines Disabled . | . . . . . Actions | -11 -10 -10 -10 -9 --------- Run | Yrd Mat Min Exi Min Total 2796 | 112 1223 350 1037 74 Wait 256 | . 49 6 201 . Move 2364 | 93 1054 320 828 69 Hop . | . . . . . Pick Up 12 | 1 8 1 2 . Fast Attach 8 | 6 2 . . . Attach 4 | . 3 1 . . Detach 3 | . 2 1 . . Swap 23 | . 16 6 1 . Drop 21 | . 14 2 5 . Fire 97 | 12 70 10 . 5 Melee . | . . . . . Ram . | . . . . . Kick 8 | . 5 3 . . Crush . | . . . . . Escape Stasis . | . . . . . Rewire . | . . . . . Trap . | . . . . . Miscellaneous . | . . . . . Route ------- -11/Scrapyard -10/Materials (discovered 5 exits: [*Mat x3] / [*Min x2]) -10/Mines (discovered 3 exits: [*Mat] / *Exi / [*Sub]) -10/Exiles (discovered 2 exits: [*Min x2]) -9/Mines History --------- Turn | Location | Event 7 | -11/Scrapyard | Discovered new exit (range 16) 158 | -11/Scrapyard | Entered Materials 549 | -10/Materials | Discovered new exit (range 7) 743 | -10/Materials | Discovered new exit (range 3) 813 | -10/Materials | Build established: Mutant 1029 | -10/Materials | Discovered new exit (range 8) 1103 | -10/Materials | Discovered new exit (range 16) 1238 | -10/Materials | Discovered new exit (range 5) 1495 | -10/Materials | Core integrity fell below 50% 2275 | -10/Materials | Entered Mines 2282 | -10/Mines | Received a Rocket Launcher from a helpful Derelict 2337 | -10/Mines | Assembled infested the area 2342 | -10/Mines | Assisted by a Guerilla fighting off Assembled 2401 | -10/Mines | Core integrity fell below 20% 2448 | -10/Mines | Learned location of Zion (-6) 2514 | -10/Mines | Learned location of Storage (-9) 2637 | -10/Mines | Discovered new exit (range 8) 2825 | -10/Mines | Discovered new exit (range 6) 2918 | -10/Mines | Discovered new exit (range 10) 2925 | -10/Mines | Deemed a non-threat by the Exiles lab entrance 2938 | -10/Mines | Entered Exiles 2967 | -10/Exiles | Discovered new exit (range 15) 3015 | -10/Exiles | Build established: Scavenger-Mutant 3030 | -10/Exiles | Met 8R-AWN 3062 | -10/Exiles | Met EX-HEX 3174 | -10/Exiles | Met EX-DEC 3207 | -10/Exiles | Visited The Gauntlet 3655 | -10/Exiles | Discovered new exit (range 14) 3813 | -10/Exiles | Met EX-BIN 3845 | -10/Exiles | Aligned with FarCom system 3847 | -10/Exiles | Given EX-Vault access code 3944 | -10/Exiles | Opened EX-Vault 3966 | -10/Exiles | Found PSU Rigger 4016 | -10/Exiles | Warned to stay clear of 0b10 Research branches 4719 | -10/Exiles | Left Exiles lab with PSU Rigger 4719 | -10/Exiles | Entered Mines 4863 | -9/Mines | Destroyed by S-10 Pest with Light Assault Rifle Last Messages --------------- EX-BIN: And don't even think about spreading that code around. We're gonna change it right after you leave. Most certainly not to something like 1234 which I did last time as a little joke and some thief managed to sneak in here and steal a few of HEX's prototypes. LOCATION=UNKNOWN GOAL=ESCAPE 04719_ Receiving FarCom transmissions... 04720_ K-01 Serf collects debris. 04725_ K-01 Serf cleans the Core Extractor. 04728_ K-01 Serf collects debris. 04737_ K-01 Serf cleans the Core Extractor. 04763_ K-01 Serf collects debris. 04857_ S-10 Pest destroyed. 04857_ Switching to secondary target: S-10 Pest. 04860_ S-10 Pest destroyed. 04860_ Switching to secondary target: S-10 Pest. 04863_ S-10 Pest destroyed. 04863_ Switching to secondary target: S-10 Pest. Map ----- +----------------------------------------------------+ | ????????????????????????????????? | | ????????????????????????????????? | | ????????????????????????????????? | | ????????????????????????????????? | | ????????????????????????????????? | | ????????????????????????????????? | | ????????????????????????????????? | | ????????????????????????????????? | | ????????????????????????????????? | | ????????????????????????????????? | | ????????????????????????????????? | | ????????????????????????????????? | | ????????????????????????????????? | | ????????????????????????????????? | | ????????????????????????????????? | | ????????????????????????##??????# | | ???????????????????????? ??????? | | ???????????????????????? #?????? | | ????????????????????????#=#?????? | | ????????????????????????#s#?????? | | ??????????????????#?????#%#?????? | | ????????????????????????#[#???#?? | | ???????????#????????????#*#?????? | | ?????????##?????????????#$#?????? | | ??????????????????#????##%#?????? | | ????????????????#??????##@#?????? | | ???? ??????????????????#%#?????? | | ????????????#??????YY???#=#???#?? | | ????????????????????????#=##????? | | ?????????????????? ? ???# #?????? | | ??????????????#???? ????# ###???? | | ????????????#???###++#### #???? | | ????????????????# ##???? | | ????? ????????### #????? | | ????? ??????#?## #????? | | ??????????????# ##????? | | ????????????#?# ## #?????# | | ??????????????# #### ###????? | | ??????????##?## #??## ##??????? | | ????????????## #???####?#?#???? | | ??????????#?# ##?????#???????? | | ????????????# #??????#??????? | | ????? ?????## ##??#?????????? | | ???????#????# ##???????????? | | ????????????## ##????????#?? | | ???????#???#?### ####???????? | | ???????????????## ##??????? | | ???? ???????????## ##?????# | | ?????????????????## #?????? | | ????????????????#?# #?????? | +----------------------------------------------------+ Best States ------------- Heat Dissipation 25 Energy Generation 10 Energy Capacity 250 Matter Stores 300 Matter Capacity 300 Sight Range 16 Terrain Scan Range 16 Terrain Scan Density 10 ECM Strength 1 Evasion (%) 55 Item Schematics ----------------- None Robot Schematics ------------------ None Fabricated ------------ Nothing Repaired ---------- Nothing Studied --------- None Alien Tech Used ----------------- None Achievements -------------- None Challenges ------------ None Game ------ Seed ShieldSuspensionWeb Manual? 0 Play Time 00:30:44 Cumulative 46.4 hours Start 2026.02.16 @ 18:04:26 End 2026.02.16 @ 18:52:32 Sessions 1 Manual Loads 0 Difficulty Rogue Special Mode None Game No. 51 Rogue 51 Adventurer 0 Explorer 0 Win Type - Total 0 Types 0/0/0/0/0/0/0/0/0/0 Lore% 27 Gallery% 18 Achievement% 19 Wizard Run 0 Options --------- Layout 1 ASCII 0 Keyboard 1 Movement Numpad Keybinds 0 Fullscreen 2 Font 24/Cog Map View 50x35 Zoom Use 0% Tactical HUD 1 Map Filters NONE Filters NONE Steam 1 RUN: 7710d09e-8f76-4ef6-8780-b5198fd7e172